Cogmind - Beta 14 @@@ ROGUE MODE // 2024.10.13 @ 14:53:11 Player: Pitt Result: Destroyed by Y-45 Defender with Beam Rifle Performance ------------- Evolutions (1) 500 Regions Visited (3) 600 Robots Destroyed (22) 110 Value Destroyed (382) 382 Prototype IDs (0) 0 Alien Tech Used (0) 0 Bonus (0) 0 TOTAL SCORE: 1592 Bonus ------- None Cogmind --------- Core Integrity 0/400 Matter 12/300 Energy 90/100 System Corruption 1% Temperature Cool (27) Movement Core (50) Location -9/Materials Parts ------- > --- POWER (1) -------- (None) > --- PROPULSION (3) --- (None) > --- UTILITY (3) ------ (None) > --- WEAPON (2) ------- (None) > --- INVENTORY (5) ---- Hover Unit Improved Terrain Scanner Datajack Mining Laser Welding Torch Peak State ------------ > --- POWER ------------ Light Ion Engine > --- PROPULSION ------- Wheel Wheel > --- UTILITY ---------- Small Storage Unit Improved Terrain Scanner > --- WEAPON ----------- Assault Rifle Light Assault Rifle > --- INVENTORY -------- Light Ion Engine Light Ion Engine Wheel Wheel Seismic Detector Mining Laser [Rating: 9] Favorites ----------- Power Light Ion Engine Engine Light Ion Engine Propulsion Hover Unit Treads Light Treads Wheel Wheel Hover Unit Hover Unit Utility Small Storage Unit Device Improved Terrain Scanner Storage Small Storage Unit Protection Light Armor Plating Weapon Assault Rifle Energy Gun Small Laser Ballistic Gun Assault Rifle Launcher Grenade Launcher Special Weapon Mining Laser Special Melee Weapon Datajack Build | -11 -10 -10 -9 ------- Run | Yrd Mat Min Mat Slots Evolved 2 | . . . 2 Power . | . . . . Propulsion 1 | . . . 1 Utility 1 | . . . 1 Weapon . | . . . . Parts Attached 32 | 6 15 . 11 Power 3 | 1 1 . 1 Engine 3 | 1 1 . 1 Core . | . . . . Reactor . | . . . . Propulsion 8 | 2 3 . 3 Treads 1 | . . . 1 Leg . | . . . . Wheel 2 | 2 . . . Hover 5 | . 3 . 2 Flight . | . . . . Utility 7 | 1 4 . 2 Device 5 | . 4 . 1 Storage 1 | 1 . . . Processor . | . . . . Hackware . | . . . . Protection 1 | . . . 1 Artifact . | . . . . Weapon 14 | 2 7 . 5 Energy Gun 5 | . 1 . 4 Energy Cannon . | . . . . Ballistic Gun 4 | 2 2 . . Ballistic Cannon . | . . . . Launcher 3 | . 2 . 1 Special Weapon 1 | . 1 . . Impact Weapon . | . . . . Slashing Weapon . | . . . . Piercing Weapon . | . . . . Special Melee Weapon 1 | . 1 . . Unidentified Prototypes . | . . . . Corrupted Parts 1 | . . . 1 System Corruption 1 | . . . 1 Parts Lost 16 | . 2 . 14 Power 3 | . 1 . 2 Propulsion 4 | . . . 4 Utility 4 | . 1 . 3 Weapon 5 | . . . 5 Highest Loss Streak 12 | . 2 . 12 To Critical Strikes . | . . . . Average Slot Usage (%) 96 | . 98 100 80 Engine 12 | . 13 14 8 Wheel 1 | . 2 . . Hover 25 | . 25 28 24 Device 14 | . 13 14 18 Storage 13 | . 14 14 10 Energy Gun 3 | . 2 14 7 Ballistic Gun 18 | . 20 14 9 Special Melee Weapon 3 | . 4 . . Peak Build Rating 9 | 6 9 8 9 Average Rating 8 | 5 8 8 7 On Entrance 5 | . 6 8 8 Naked Turns 7 | . . . 7 Heaviest Build 13 | 11 13 12 13 Greatest Support 20 | 20 20 12 20 Greatest Overweight (x) 3 | . 1 . 3 Average Overweight (x) . | . . . . Largest Inventory Capacity 8 | 8 8 8 8 Average Capacity 7 | 7 8 8 7 Most Carried 8 | 7 8 8 8 Average Carried 7 | 2 7 8 7 Final Capacity 8 | 8 8 8 5 Final Carried 8 | 7 8 8 5 Class Distribution -------------------- 72% | Mutant 27% | Scavenger-Mutant Dominant Class ---------------- Mutant | -10/Materials Scavenger-Mutant | -10/Mines Scavenger-Mutant | -9/Materials Resources | -11 -10 -10 -9 ----------- Run | Yrd Mat Min Mat Matter Collected 359 | 173 136 . 50 Remotely . | . . . . Salvage Created 456 | 100 224 . 132 Parts 54 | 9 31 . 14 Haulers Intercepted . | . . . . Recyclers Shooed . | . . . . Parts Field Recycled . | . . . . Retrieved Matter . | . . . . Parts Self-Destructed . | . . . . Prevented . | . . . . Kills | -11 -10 -10 -9 ------- Run | Yrd Mat Min Mat Combat Hostiles Destroyed 12 | . 9 . 3 Melee 1 | . . . 1 Guns 4 | . 3 . 1 AOE 7 | . 6 . 1 Classes Destroyed 8 | 2 5 . 1 Worker 1 | . 1 . . Builder 2 | . 1 . 1 Tunneler 4 | 3 1 . . Recycler 1 | 1 . . . Watcher 2 | . 2 . . Swarmer 6 | . 6 . . Grunt 5 | . 3 . 2 Sentry 1 | . . . 1 Best Kill Streak 8 | 2 8 . 2 Combat Bots Only 7 | . 7 . 1 Max Kills in Single Turn 3 | 1 3 . 2 Gunslinging . | . . . . Exploded 3 | . 3 . 1 Melee 1 | . . . 1 Uniques/NPCs Destroyed . | . . . . Combat | -11 -10 -10 -9 -------- Run | Yrd Mat Min Mat Hostile Shots Fired 180 | . 41 . 139 Missed 49 | . 13 . 36 Damage Taken 1474 | . 295 . 1179 Core 504 | . 95 . 409 Absorbed by Shields . | . . . . Regen/Repaired (Parts) 12 | . 12 . . Core Remaining (%) 81 | 100 . 62 . Volleys Fired 58 | 13 34 . 11 Largest 2 | 2 2 . 2 Hottest 100 | 40 100 . 65 Shots Fired 84 | 26 42 . 16 Gun 73 | 26 32 . 15 Cannon . | . . . . Launcher 9 | . 8 . 1 Special 2 | . 2 . . Kinetic 54 | 26 18 . 10 Thermal 16 | . 16 . . Explosive 9 | . 8 . 1 Electromagnetic 5 | . . . 5 Robot Hit Streak 9 | 7 9 . 8 Robot Miss Streak 3 | 3 3 . 2 Penetration Max . | . . . . Secondary Targets . | . . . . Shots Hit Robots 49 | 15 23 . 11 Core Hits 32 | 5 19 . 8 Critical Kills . | . . . . Critical Parts Destroyed . | . . . . Critical Strikes . | . . . . Melee Attacks 3 | . 3 . . Impact . | . . . . Slashing . | . . . . Piercing . | . . . . Sneak Attacks 2 | . 2 . . Combat Hostiles . | . . . . Follow-up Attacks . | . . . . Damage Inflicted 1063 | 174 616 . 273 Guns 537 | 174 222 . 141 Cannons . | . . . . Explosions 509 | . 387 . 122 Melee . | . . . . Ramming 17 | . 7 . 10 Kinetic 382 | 174 144 . 64 Thermal 78 | . 78 . . Explosive 509 | . 387 . 122 Electromagnetic 77 | . . . 77 Impact . | . . . . Slashing . | . . . . Piercing . | . . . . Highest Corruption 1 | . . . 1 Average Corruption 1 | . . . 1 Corruption Purged . | . . . . Corruption Blocked . | . . . . Overload Shots . | . . . . Overflow Damage 39 | . 39 . . Projectiles . | . . . . Explosions 39 | . 39 . . Melee . | . . . . Knockbacks . | . . . . Impact . | . . . . Kinetic . | . . . . Secondary . | . . . . Self-Inflicted Damage 44 | . 41 . 3 Shots 2 | . 2 . . Rammed 5 | . 1 . 4 Targets Rammed 5 | . 1 . 4 Kicked . | . . . . Crushed . | . . . . Highest Temperature 30 | . 30 . 18 Average Temperature 10 | . 11 . 5 Received Heat Transfer 525 | . 72 . 453 Siege Activations . | . . . . Robots Corrupted . | . . . . Combat Hostiles . | . . . . Parts Fried . | . . . . Impact Corruptions . | . . . . Robots Melted . | . . . . Combat Hostiles . | . . . . Parts Melted . | . . . . Heat Transferred 175 | . 175 . . Parts Sabotaged . | . . . . Parts Stolen . | . . . . Parts Stripped . | . . . . Power Chain Reactions . | . . . . Alert | -11 -10 -10 -9 ------- Run | Yrd Mat Min Mat Peak Influence 207 | 20 207 80 133 Initial 80 | . 13 80 31 Average 39 | 7 29 80 82 Maximum Alert Level 1 | . 1 . . Low Security (%) 98 | 100 98 100 100 Level 1 1 | . 1 . . Level 2 . | . . . . Level 3 . | . . . . Level 4 . | . . . . Level 5 . | . . . . High Security . | . . . . Max Security . | . . . . Squads Dispatched . | . . . . Investigation . | . . . . Extermination . | . . . . Reinforcement . | . . . . Assault . | . . . . Garrison . | . . . . Intercept . | . . . . Searches Triggered . | . . . . Construction Impeded . | . . . . Haulers Reinforced . | . . . . Active Scanning Responses . | . . . . Cargo Convoy Interrupts . | . . . . Stealth | -11 -10 -10 -9 --------- Run | Yrd Mat Min Mat Distress Signals 2 | . . . 2 Communications Jammed . | . . . . Distress Signals . | . . . . Times Spotted 29 | . 13 . 16 Peak Tracking Total 11 | . 5 . 11 Tactical Retreats 4 | . . . 4 Traps | -11 -10 -10 -9 ------- Run | Yrd Mat Min Mat Traps Triggered . | . . . . Indirectly . | . . . . Trap Hack Attempts . | . . . . Triggered . | . . . . Disarmed . | . . . . Reprogrammed . | . . . . Reused . | . . . . Traps Extracted . | . . . . Installed . | . . . . Triggered . | . . . . Machines | -11 -10 -10 -9 ---------- Run | Yrd Mat Min Mat Machines Disabled 3 | . 3 . . Max in Single Turn 2 | . 2 . . Machines Repaired . | . . . . Machines Dismantled . | . . . . Machines Sabotaged . | . . . . Overloaded Fab Kills . | . . . . Hacking | -11 -10 -10 -9 --------- Run | Yrd Mat Min Mat Machines Accessed 5 | . 4 . 1 Terminals 4 | . 3 . 1 Fabricators . | . . . . Repair Stations 1 | . 1 . . Recycling Units . | . . . . Scanalyzers . | . . . . Garrison Access . | . . . . Total Hacks 16 | . 14 . 2 Successful 7 | . 7 . . Failed 9 | . 7 . 2 Catastrophic 1 | . . . 1 Database Lockouts . | . . . . Manual 11 | . 9 . 2 Terminals 11 | . 9 . 2 Fabricators . | . . . . Repair Stations 5 | . 5 . . Recycling Units . | . . . . Scanalyzers . | . . . . Garrison Access . | . . . . Terminal Hacks 1 | . 1 . . Terminal Index 1 | . 1 . . Fabricator Hacks . | . . . . Repair Station Hacks 2 | . 2 . . Scan Component 1 | . 1 . . Repair 1 | . 1 . . Recycling Unit Hacks . | . . . . Scanalyzer . | . . . . Garrison Access Hacks . | . . . . Unauthorized Hacks 4 | . 4 . . Terminals 4 | . 4 . . Track 1 | . 1 . . Assimilate 1 | . 1 . . Botnet 1 | . 1 . . Operators 1 | . 1 . . Fabricators . | . . . . Repair Stations . | . . . . Recycling Units . | . . . . Scanalyzers . | . . . . Garrison Access . | . . . . Data Cores Recovered . | . . . . Used . | . . . . Hacking Detections 4 | . 3 . 1 Full Trace Events 1 | . . . 1 Feedback Events . | . . . . Feedback Blocked . | . . . . Robot Schematics Acquired . | . . . . Robots Built . | . . . . Authchips . | . . . . Time . | . . . . Total Robot Build Rating . | . . . . Part Schematics Acquired . | . . . . Parts Built . | . . . . Authchips . | . . . . Time . | . . . . Total Part Build Rating . | . . . . Parts Repaired 1 | . 1 . . Time 26 | . 26 . . Parts Recycled . | . . . . Recycled Matter . | . . . . Retrieved Matter . | . . . . Retrieved Components . | . . . . Parts Scanalyzed . | . . . . Part Schematics Acquired . | . . . . Parts Damaged . | . . . . Bothacking | -11 -10 -10 -9 ------------ Run | Yrd Mat Min Mat Used RIF Installer . | . . . . Robots Hacked 2 | . 2 . . Non-combat 2 | . 2 . . Combat . | . . . . Robot Hacks Applied 3 | . 3 . . parse_system 2 | . 2 . . no_distress 1 | . 1 . . Relay Couplers Released . | . . . . Fabnet Peak Effective % . | . . . . Robots Rewired . | . . . . Allies Hacked . | . . . . Hacks Repelled . | . . . . Allies | -11 -10 -10 -9 -------- Run | Yrd Mat Min Mat Total Allies . | . . . . Largest Group . | . . . . Highest-Rated Group . | . . . . Highest-Rated Ally . | . . . . Total Orders . | . . . . Ally Attacks . | . . . . Total Damage . | . . . . Kills . | . . . . Allies Corrupted . | . . . . Allies Melted . | . . . . Intel | -11 -10 -10 -9 ------- Run | Yrd Mat Min Mat Robot Analysis Total . | . . . . Derelict Logs Recovered 1 | . . 1 . Drone Launches . | . . . . Drone Recoveries . | . . . . Exploration | -11 -10 -10 -9 ------------- Run | Yrd Mat Min Mat Turns Passed 1846 | 120 1346 104 276 Spaces Moved 608 | 77 261 121 149 Core 23 | 1 . . 22 Treads 7 | . . . 7 Legs . | . . . . Wheels 97 | 76 21 . . Hover 481 | . 240 121 120 Flight . | . . . . Fastest Speed 50 | 50 56 56 50 Average Speed 68 | 79 67 56 76 Slowest Speed 200 | 80 116 56 200 Overloaded Moves . | . . . . Propulsion Burnouts . | . . . . Robots Hopped . | . . . . Cave-ins Triggered . | . . . . Exploration Rate (%) 21 | 5 33 30 16 Regions Visited 3 Branch Regions 1 Pre-discovered Areas 1 | . . 1 . Known Exits Taken . | . . . . Unknown Exits Taken 3 | 1 1 1 . Scrap Searched . | . . . . Spaces Dug 16 | . 16 . . Terrain Destroyed 82 | . 76 . 6 Melee . | . . . . Projectile 2 | . 2 . . AOE 80 | . 74 . 6 Terrain Rammed . | . . . . Walls Destroyed . | . . . . Machines Disabled . | . . . . Actions | -11 -10 -10 -9 --------- Run | Yrd Mat Min Mat Total 1939 | 109 1383 156 291 Wait 1202 | 7 1046 36 113 Move 605 | 76 260 120 149 Hop . | . . . . Pick Up 22 | 7 13 . 2 Fast Attach 14 | 6 2 . 6 Attach 7 | . 3 . 4 Detach 2 | . 1 . 1 Swap 11 | . 10 . 1 Drop 10 | . 10 . . Fire 58 | 13 34 . 11 Melee 3 | . 3 . . Ram 4 | . 1 . 3 Kick . | . . . . Crush 1 | . . . 1 Escape Stasis . | . . . . Rewire . | . . . . Trap . | . . . . Miscellaneous . | . . . . Route ------- -11/Scrapyard -10/Materials (discovered 2 exits: [*Min x2]) -10/Mines -9/Materials History --------- Turn | Location | Event 13 | -11/Scrapyard | Discovered new exit (range 16) 121 | -11/Scrapyard | Entered Materials 261 | -10/Materials | Discovered new exit (range 11) 303 | -10/Materials | Build established: Mutant 1293 | -10/Materials | Repaired Hover Unit 1400 | -10/Materials | Destroyed 7 combat bots 1444 | -10/Materials | Discovered new exit (range 13) 1467 | -10/Materials | Entered Mines 1468 | -10/Mines | Met a Derelict bent on vengeance 1560 | -10/Mines | Found a hidden stash of uninstalled traps 1562 | -10/Mines | Discovered new exit (range 12) 1571 | -10/Mines | Entered Materials 1571 | -9/Materials | Evolved 2 slots: Propulsion x1, Utility x1 1690 | -9/Materials | Build established: Scavenger-Mutant 1832 | -9/Materials | Core integrity fell below 50% 1843 | -9/Materials | Core integrity fell below 20% 1847 | -9/Materials | Destroyed by Y-45 Defender with Beam Rifle Last Messages --------------- 01811_ Complication: Lgt. Armor Plating rejected. 01811_ Complication: Beam Rifle rejected. 01814_ K-01 Serf collects debris. 01814_ Acquired Beam Rifle. 01818_ K-01 Serf cleans the Atomic Centrifuge. 01818_ Beam Rifle destroyed. 01820_ Slammed into G-34 Mercenary. 01830_ K-01 Serf collects debris. 01831_ Lgt. Treads destroyed. 01838_ Ion Engine destroyed. 01838_ Sml. Storage Unit destroyed. 01840_ Acquired Grenade Launcher. 01842_ G-34 Mercenary destroyed. 01842_ U-05 Engineer destroyed. 01842_ Grenade Launcher destroyed. 01845_ Sml. Laser destroyed. 01846_ Acquired Datajack. 01846_ R-06 Scavenger collects Terrain Scan Processor. 01847_ Slammed into S-10 Pest. 01847_ Critical hit (Burn: +37). Map ----- +----------------------------------------------------+ | ?????????????????????????????????????????????????? | | ?????????????????????????????????????????????????? | | ?????????????????????????????????????????????????? | | ?????????????????????????????????????????????????? | | ???????????????????????????????????????????????? | | ?????????? ????##???#+##?????????????????????? | | ????????? ???# ??? ?????????????????????? | | ???????? #### ### ##????????????????????? | | ##??????## #####+### ##????????????????????? | | ##?????? # # ## ##????????????????????? | | ##????? + # """ ## ##????????????????????? | | ##????? # / """ ## ##????????????????????? | | +????? # # """ ## ##????????????????????? | | ##????? # # # r ###########??????????? | | ##????? # # """ # ??????????? | | ##?????## # "" !sr| ?????????? | | ##?????## # "" % = ??????????? | | ######### # * # [ #######??????????????? | | ######### # ]]# Y=%##????????????????????? | | ## # ] # ?????????????????????? | | [# # Yg ?????????????????????? | | = + ## #?????????????????????? | | /// """ !######### #?????????????????????? | | //! """ #########s #?????????????????????? | | //! """ s #?????????????????????? | | """ ##########@#####??????????????????? | | ####?# #??????????????????? | | ##???# t #??????????????????? | | #############+###???# #??????????????????? | | ##### ???# #??????????????????? | | ????????????????????#""" """ #??????????????????? | | ????????????????????#"R """ #??????????????????? | | ????????????????????#""" """ #??????????????????? | | ????????????????????# #??????????????????? | | ?????????????????????########?#??????????????????? | | ?????????????????????????????????????????????????? | | ?????????????????????????????????????????????????? | | ?????????????????????????????????????????????????? | | ?????????????????????????????????????????????????? | | ?????????????????????????????????????????????????? | | ?????????????????????????????????????????????????? | | ?????????????????????????????????????????????????? | | ?????????????????????????????????????????????????? | | ?????????????????????????????????????????????????? | | ?????????????????????????????????????????????????? | | ?????????????????????????????????????????????????? | | ?????????????????????????????????????????????????? | | ?????????????????????????????????????????????????? | | ?????????????????????????????????????????????????? | | ?????????????????????????????????????????????????? | +----------------------------------------------------+ Best States ------------- Heat Dissipation 28 Energy Generation 10 Energy Capacity 250 Matter Stores 172 Matter Capacity 300 Sight Range 16 Terrain Scan Range 16 Terrain Scan Density 10 Armor Coverage 150 Evasion (%) 54 Recoil Reduction 1 Item Schematics ----------------- None Robot Schematics ------------------ None Fabricated ------------ Nothing Alien Tech Used ----------------- None Achievements -------------- None Challenges ------------ None Game ------ Seed SingularityReactiveMace Manual? 0 Play Time 00:15:10 Cumulative 210.0 hours Start 2024.10.13 @ 14:38:21 End 2024.10.13 @ 14:53:11 Sessions 1 Manual Loads 0 Difficulty Rogue Special Mode None Game No. 327 Rogue 327 Adventurer 0 Explorer 0 Win Type - Total 0 Types 0/0/0/0/0/0/0/0/0 Lore% 31 Gallery% 54 Achievement% 40 Wizard Run 0 Options --------- Layout 0 ASCII 0 Keyboard 0 Movement Mouse Keybinds 0 Fullscreen 1 Font 18/SmallcapsGlow Map View 76x50 Zoom Use 0% Tactical HUD 1 Map Filters NONE Filters NONE Steam 1 RUN: f9bb3572-7e53-432b-9681-0a6f8651256d